Cogmind - Beta 16.1 @@@ ROGUE MODE // 2026.03.08 @ 18:31:38 Player: CometVoid Result: Destroyed by G-73 Enforcer with Phase Gun Performance ------------- Evolutions (8) 4000 Regions Visited (17) 3400 Robots Destroyed (67) 335 Value Destroyed (2184) 2184 Prototype IDs (2) 40 Alien Tech Used (0) 0 Bonus (2322) 2322 TOTAL SCORE: 12281 Bonus ------- High Alert Combat Kills 240 Follower Combat Kills 1295 Entered Garrisons 200 Used RIF Installer 500 Entered DSFs 500 Friendly Fire -413 Cogmind --------- Core Integrity 0/1450 Matter 120/300 Energy 99/100 System Corruption 0% Temperature Cool (9) Movement Core (50) Location -2/Research Parts ------- > --- POWER (3) -------- (None) > --- PROPULSION (9) --- (None) > --- UTILITY (9) ------ Jamming Amplifier Hacking Suite Relay Coupler [Specialist] (18) > --- WEAPON (2) ------- (None) > --- INVENTORY (5) ---- (None) Peak State ------------ > --- POWER ------------ Backup Power I Quantum Reactor > --- PROPULSION ------- Gravmag Array Gravmag Array Combat Linear Gravjet Improved VTOL Module > --- UTILITY ---------- Advanced Cooling System Improved Signal Interpreter Utility Shielding Graphene Brace Graphene Brace Hacking Suite Improved Hacking Suite > --- WEAPON ----------- Plasma Rifle Improved Datajack > --- INVENTORY -------- Improved Signal Interpreter Improved Signal Interpreter Jamming Amplifier Relay Coupler [Specialist] [Rating: 84] Favorites ----------- Power Light Nuclear Core Engine Light Ion Engine Power Core Light Nuclear Core Reactor Quantum Reactor Propulsion Cesium-ion Thruster Leg Aluminum Leg Wheel Wheel Hover Unit Gravmag Array Flight Unit Cesium-ion Thruster Utility Improved Signal Interpreter Device Graphene Brace Storage Huge Storage Unit Processor Improved Signal Interpreter Hackware Hacking Suite Protection Utility Shielding Weapon Mini Grenade Launcher Energy Gun Plasma Rifle Energy Cannon HERF Cannon Ballistic Gun Light Assault Rifle Launcher Mini Grenade Launcher Special Weapon Improved Remote Datajack Impact Weapon Great Maul Special Melee Weapon Improved Datajack Build | -11 -10 -9 -8 -7 -7 -6 -6 -6 -6 -5 -4 -4 -4 -4 -4 -3 -2 ------- Run | Yrd Mat Mat Mat Fac DSF Fac Was Fac Gar Fac Fac Was Fac Ext Cet Res Res Slots Evolved 16 | . . 2 2 2 . 2 . . . 2 2 . . . . 2 2 Power 2 | . . . 1 . . 1 . . . . . . . . . . . Propulsion 7 | . . 1 1 1 . . . . . 1 1 . . . . 1 1 Utility 7 | . . 1 . 1 . 1 . . . 1 1 . . . . 1 1 Weapon . | . . . . . . . . . . . . . . . . . . Parts Attached 131 | 9 8 6 20 5 9 3 . 6 8 17 2 2 10 5 1 14 6 Power 21 | 1 . . 6 1 . . . 1 2 2 . 1 1 2 . 3 1 Engine 7 | 1 . . 4 . . . . . . . . . . 1 . 1 . Core 10 | . . . 2 1 . . . 1 2 2 . . 1 1 . . . Reactor 4 | . . . . . . . . . . . . 1 . . . 2 1 Propulsion 45 | 4 2 3 10 . 8 . . . 2 5 . 1 3 2 . 3 2 Treads . | . . . . . . . . . . . . . . . . . . Leg 2 | 2 . . . . . . . . . . . . . . . . . Wheel 6 | 2 2 . . . . . . . . . . . . . . 2 . Hover 6 | . . . . . . . . . . 4 . 1 . 1 . . . Flight 31 | . . 3 10 . 8 . . . 2 1 . . 3 1 . 1 2 Utility 41 | 2 2 2 2 3 1 3 . 4 1 8 1 . 3 1 1 4 3 Device 25 | 1 . 1 1 2 1 3 . 4 1 3 1 . 1 1 1 3 1 Storage 4 | 1 2 . . . . . . . . . . . . . . . 1 Processor 5 | . . 1 1 . . . . . . . . . 1 . . 1 1 Hackware 6 | . . . . 1 . . . . . 4 . . 1 . . . . Protection 1 | . . . . . . . . . . 1 . . . . . . . Artifact . | . . . . . . . . . . . . . . . . . . Weapon 24 | 2 4 1 2 1 . . . 1 3 2 1 . 3 . . 4 . Energy Gun 5 | . 1 . . . . . . . 1 . 1 . . . . 2 . Energy Cannon 1 | . . . . . . . . . . . . . 1 . . . . Ballistic Gun 5 | 2 1 . . . . . . . . . . . 1 . . 1 . Ballistic Cannon . | . . . . . . . . . . . . . . . . . . Launcher 6 | . . 1 2 . . . . 1 2 . . . . . . . . Special Weapon 5 | . 2 . . 1 . . . . . 1 . . 1 . . . . Impact Weapon 1 | . . . . . . . . . . . . . . . . 1 . Slashing Weapon . | . . . . . . . . . . . . . . . . . . Piercing Weapon . | . . . . . . . . . . . . . . . . . . Special Melee Weapon 1 | . . . . . . . . . . 1 . . . . . . . Unidentified Prototypes 2 | . . . 2 . . . . . . . . . . . . . . Parts Lost 80 | . 3 1 6 . 1 2 . 1 6 19 . . 6 15 . 13 7 Power 16 | . . . 2 . . . . . 1 4 . . 2 4 . 2 1 Propulsion 29 | . 2 . 2 . 1 . . 1 2 7 . . 1 6 . 5 2 Utility 24 | . . 1 . . . 1 . . 2 6 . . 3 3 . 5 3 Weapon 11 | . 1 . 2 . . 1 . . 1 2 . . . 2 . 1 1 Highest Loss Streak 12 | . 2 1 2 . 1 2 . 1 3 5 . . 6 6 . 12 7 To Critical Strikes . | . . . . . . . . . . . . . . . . . . Average Backups 5 | 6 17 6 4 4 5 4 5 4 4 4 4 4 4 5 5 3 . Power . | . 1 . . . . . . . 1 . . . . . . . . Propulsion 1 | 3 8 3 1 . . 1 1 . . . . . . . . . . Utility 2 | . 2 . . 2 3 2 3 3 2 3 4 4 3 3 4 1 . Weapon 1 | 1 5 2 1 1 1 1 . . . . . . . . 1 . . Tool/Special . | . . . . . . . . . . . . . . . . . . Unused Backups 15 | 1 2 6 3 1 . . . 1 . 1 . . . . . . . Power 3 | . . 1 2 . . . . . . . . . . . . . . Propulsion 6 | . 2 3 . 1 . . . . . . . . . . . . . Utility 2 | . . . . . . . . 1 . 1 . . . . . . . Weapon 4 | 1 . 2 1 . . . . . . . . . . . . . . Tool/Special . | . . . . . . . . . . . . . . . . . . Average Slot Usage (%) 78 | . 89 91 93 99 100 89 91 94 93 76 55 64 80 68 31 40 23 Engine 4 | . 14 11 12 7 7 6 6 5 1 . . . 4 3 . . . Core 4 | . . . 1 6 7 6 6 8 13 7 . . 4 1 . . . Wheel 2 | . 23 4 . . . . . . . . . . . . . 1 . Hover 3 | . . . . . . . . . . 1 10 10 9 11 5 2 . Flight 19 | . . 26 34 37 38 33 33 33 32 23 5 5 17 6 5 1 . Device 17 | . 14 17 17 16 15 20 20 19 24 21 12 15 14 13 5 17 5 Storage 1 | . 14 2 . . . . . . . . . . . . . . 2 Processor 5 | . . 7 9 7 7 6 6 6 6 5 5 5 4 5 5 3 3 Hackware 5 | . . . . 5 7 6 6 6 1 3 10 10 11 14 10 9 8 Energy Gun 1 | . 3 . . . . . . . . . . 5 3 2 . . . Ballistic Gun 2 | . 15 16 . . . . . . . . . . 2 . . . 2 Launcher 5 | . . 5 15 11 7 6 11 13 11 3 . . . . . . . Special Weapon 1 | . 3 . 1 3 7 2 . . . 2 . . 1 2 . . . Peak Build Rating 84 | 7 10 11 32 43 39 45 47 54 60 65 65 83 84 80 45 69 38 Average Rating 44 | 5 8 9 21 39 37 43 46 49 54 54 58 70 70 69 40 44 29 On Entrance 39 | . 7 9 10 32 38 39 43 47 54 54 47 65 83 80 40 45 16 Avg Prop Armor Cover (%) 4 | . . . . 1 3 . . . . 3 2 1 9 3 11 6 . Naked Turns . | . . . . . . . . . . . . . . . . . . Heaviest Build 88 | 11 88 87 20 21 16 18 24 27 30 26 10 30 31 35 2 28 17 Greatest Support 47 | 20 20 20 20 25 30 27 27 27 29 40 44 44 44 47 13 26 8 Greatest Overweight (x) 8 | . 8 4 1 . . . . . 1 1 . . . . . 1 5 Average Overweight (x) . | . 4 . . . . . . . . . . . . . . . . Largest Inventory Capacity 25 | 8 25 25 5 5 5 5 5 5 5 5 5 5 5 5 5 5 5 Average Capacity 6 | 7 22 6 5 5 5 5 5 5 5 5 5 5 5 5 5 5 5 Most Carried 22 | 8 22 19 5 5 5 5 5 5 5 5 5 4 5 5 5 5 2 Average Carried 5 | 6 17 5 4 4 4 4 4 4 4 4 4 4 4 4 4 3 . Final Capacity 25 | 8 25 5 5 5 5 5 5 5 5 5 5 5 5 5 5 5 5 Final Carried 19 | 8 19 5 5 5 5 5 5 5 5 5 4 4 5 5 4 3 . Class Distribution -------------------- 26% | Mutant 19% | Hacker-Mutant 16% | Sprinter 11% | Scout 10% | Scavenger-Scout 9% | Scavenger-Mutant 5% | Scavenger-Sprinter Dominant Class ---------------- Mutant | -10/Materials Mutant | -9/Materials Sprinter | -8/Materials Sprinter | -7/Factory Sprinter | -7/DSF Scout | -6/Factory Scout | -6/Waste Scout | -6/Factory Scavenger-Scout | -6/Garrison Scavenger-Sprinter | -5/Factory Hacker-Mutant | -4/Factory Hacker-Mutant | -4/Waste Scavenger-Mutant | -4/Factory Hacker-Mutant | -4/Extension Mutant | -4/Cetus Mutant | -3/Research Mutant | -2/Research Resources | -11 -10 -9 -8 -7 -7 -6 -6 -6 -6 -5 -4 -4 -4 -4 -4 -3 -2 ----------- Run | Yrd Mat Mat Mat Fac DSF Fac Was Fac Gar Fac Fac Was Fac Ext Cet Res Res Matter Collected 2941 | 343 63 . 1178 . . 9 268 23 411 278 . . 134 129 . 101 4 Remotely . | . . . . . . . . . . . . . . . . . . Salvage Created 1361 | 137 138 . 780 . . . . . 110 36 . . 109 . . 20 31 Parts 98 | 15 14 . 45 . . . . . 6 6 . . 6 . . 3 3 Haulers Intercepted 4 | . . . 4 . . . . . . . . . . . . . . Recyclers Shooed 2 | 1 . . 1 . . . . . . . . . . . . . . Parts Field Recycled . | . . . . . . . . . . . . . . . . . . Retrieved Matter . | . . . . . . . . . . . . . . . . . . Parts Self-Destructed . | . . . . . . . . . . . . . . . . . . Prevented . | . . . . . . . . . . . . . . . . . . Parts Restored . | . . . . . . . . . . . . . . . . . . Kills | -11 -10 -9 -8 -7 -7 -6 -6 -6 -6 -5 -4 -4 -4 -4 -4 -3 -2 ------- Run | Yrd Mat Mat Mat Fac DSF Fac Was Fac Gar Fac Fac Was Fac Ext Cet Res Res Combat Hostiles Destroyed 40 | . 5 . 24 . . . . . 3 3 . . 4 . . . 1 Guns 9 | . 4 . . . . . . . . . . . 4 . . . 1 AOE 31 | . 1 . 24 . . . . . 3 3 . . . . . . . Classes Destroyed 11 | 2 2 . 7 . . . . . . . . . . . . . . Worker 5 | . . . 4 . . . . . . . . . . . . 1 . Builder 1 | . . . 1 . . . . . . . . . . . . . . Tunneler 6 | 4 . . 2 . . . . . . . . . . . . . . Hauler 4 | . . . 4 . . . . . . . . . . . . . . Recycler 3 | 1 . . 2 . . . . . . . . . . . . . . Operator 2 | . . . 2 . . . . . . . . . . . . . . Watcher 4 | . . . 3 . . . . . . 1 . . . . . . . Swarmer 17 | . 3 . 3 . . . . . 3 3 . . 4 . . . 1 Grunt 15 | . 2 . 13 . . . . . . . . . . . . . . Brawler 2 | . . . 2 . . . . . . . . . . . . . . Sentry 6 | . . . 6 . . . . . . . . . . . . . . Wasp 1 | . . . . . . . . . 1 . . . . . . . . Thug 1 | . . . . . . . . . 1 . . . . . . . . Best Kill Streak 23 | 1 5 . 23 . . . . . 3 3 . . 3 . . 1 1 Combat Bots Only 8 | . 5 . 8 . . . . . 3 3 . . 3 . . . 1 Max Kills in Single Turn 4 | 1 1 . 3 . . . . . 4 2 . . 1 . . 1 1 Gunslinging . | . . . . . . . . . . . . . . . . . . Exploded 3 | . 1 . 2 . . . . . 3 2 . . . . . . . Melee . | . . . . . . . . . . . . . . . . . . Uniques/NPCs Destroyed . | . . . . . . . . . . . . . . . . . . Combat | -11 -10 -9 -8 -7 -7 -6 -6 -6 -6 -5 -4 -4 -4 -4 -4 -3 -2 -------- Run | Yrd Mat Mat Mat Fac DSF Fac Was Fac Gar Fac Fac Was Fac Ext Cet Res Res Hostile Shots Fired 713 | . 36 4 74 . 2 . . 6 18 153 . . 69 117 4 118 112 Missed 297 | . 8 1 34 . 1 . . 1 5 79 . . 30 51 2 42 43 Hits 416 | . 28 3 40 . 1 . . 5 13 74 . . 39 66 2 76 69 Melee 1 | . . . . . . . . . . . . . . . . 1 . Projectile 415 | . 28 3 40 . 1 . . 5 13 74 . . 39 66 2 75 69 AOE 2 | . . . . . . . . . 2 . . . . . . . . Critical Strikes 13 | . . . 2 . . . . . 1 4 . . 3 . . 2 1 Actively Blocked 7 | . . . . . . . . . . 1 . . 3 . . 2 1 Damage Taken 8818 | . 332 45 628 . 41 70 . 82 335 1576 . . 620 1429 57 1654 1949 Core 3687 | . 89 16 146 . . 9 . 17 16 438 . . 136 560 . 787 1473 Absorbed by Shields 8 | . . . . . . . . . . . . . . 8 . . . Redirected to Shielding 51 | . . . . . . . . . . 38 . . 13 . . . . Regen/Repaired (Parts) 178 | . . . . . . . . 49 . . . . 129 . . . . Core Remaining (%) 73 | 100 64 96 73 . 100 . . . 95 56 . . . . 39 39 . Volleys Fired 144 | 23 20 . 47 1 1 . . 5 6 13 . . 17 2 . . 9 Largest 2 | 2 2 . 2 1 1 . . 1 2 2 . . 2 1 . . 1 Hottest 120 | 40 120 . 100 100 100 . . 36 66 66 . . 98 88 . . 35 Shots Fired 214 | 33 36 . 74 1 1 . . 5 11 18 . . 24 2 . . 9 Gun 98 | 33 30 . 1 . . . . . 1 . . . 23 1 . . 9 Cannon 1 | . . . . . . . . . . . . . . 1 . . . Launcher 101 | . . . 70 . . . . 5 10 16 . . . . . . . Special 14 | . 6 . 3 1 1 . . . . 2 . . 1 . . . . Kinetic 70 | 33 21 . 1 . . . . . . . . . 6 . . . 9 Thermal 32 | . 6 . 3 1 1 . . . 1 2 . . 17 1 . . . Explosive 101 | . . . 70 . . . . 5 10 16 . . . . . . . Electromagnetic 10 | . 9 . . . . . . . . . . . . 1 . . . Robot Hit Streak 9 | 5 7 . 9 . . . . 1 2 5 . . 6 1 . . 2 Robot Miss Streak 4 | 2 3 . 2 . . . . 1 4 1 . . 3 1 . . 2 Penetration Max . | . . . . . . . . . . . . . . . . . . Secondary Targets 1 | . 1 . . . . . . . . . . . . . . . . Max Gunslinging Chain 1 | . 1 . . . . . . . . . . . . . . . . Shots Hit Robots 126 | 18 18 . 42 . . . . 2 3 23 . . 13 1 . 1 5 Core Hits 138 | 10 9 . 81 . . . . 2 13 16 . . 4 . . 1 2 Critical Kills . | . . . . . . . . . . . . . . . . . . Critical Parts Destroyed . | . . . . . . . . . . . . . . . . . . Critical Strikes 2 | . . . . . . . . . . . . . 2 . . . . Burn 2 | . . . . . . . . . . . . . 2 . . . . Melee Attacks 15 | . . . . . . . . . . 13 . . 1 . . 1 . Impact 1 | . . . . . . . . . . . . . . . . 1 . Slashing . | . . . . . . . . . . . . . . . . . . Piercing . | . . . . . . . . . . . . . . . . . . Sneak Attacks 10 | . . . . . . . . . . 9 . . . . . 1 . Combat Hostiles . | . . . . . . . . . . . . . . . . . . Follow-up Attacks . | . . . . . . . . . . . . . . . . . . Damage Inflicted 5983 | 149 239 . 3685 . . . . 171 546 676 . . 234 42 . 116 125 Guns 696 | 149 179 . 9 . . . . . . . . . 234 . . . 125 Cannons 42 | . . . . . . . . . . . . . . 42 . . . Explosions 5129 | . 60 . 3676 . . . . 171 546 676 . . . . . . . Melee 116 | . . . . . . . . . . . . . . . . 116 . Ramming . | . . . . . . . . . . . . . . . . . . Kinetic 371 | 149 73 . 9 . . . . . . . . . 15 . . . 125 Thermal 279 | . 60 . . . . . . . . . . . 219 . . . . Explosive 5029 | . . . 3676 . . . . 171 546 636 . . . . . . . Electromagnetic 188 | . 106 . . . . . . . . 40 . . . 42 . . . Impact 116 | . . . . . . . . . . . . . . . . 116 . Slashing . | . . . . . . . . . . . . . . . . . . Piercing . | . . . . . . . . . . . . . . . . . . Highest Corruption 11 | . . . . . . . . 1 7 3 1 7 11 11 11 9 . Average Corruption 5 | . . . . . . . . 1 5 1 1 5 7 11 11 7 . Corruption Purged . | . . . . . . . . . . . . . . . . . . Corruption Blocked . | . . . . . . . . . . . . . . . . . . Effects 61 | . . . . . . . . 1 10 4 1 3 14 25 1 2 . Message Errors 10 | . . . . . . . . 1 2 1 . . 1 4 1 . . Matter Fused 20 | . . . . . . . . . 4 1 . 1 4 8 . 2 . Heat Flow Errors 5 | . . . . . . . . . 1 . . . 2 2 . . . Energy Discharges 6 | . . . . . . . . . 1 . 1 . 1 3 . . . Parts Rejected 2 | . . . . . . . . . . 1 . . . 1 . . . Parts Fused 1 | . . . . . . . . . . . . . . 1 . . . Data Loss (minor) 5 | . . . . . . . . . 1 1 . . 3 . . . . Data Loss (major) 2 | . . . . . . . . . . . . 1 1 . . . . Misfires 2 | . . . . . . . . . 1 . . . 1 . . . . Alerts 4 | . . . . . . . . . . . . 1 1 2 . . . Misdirections 4 | . . . . . . . . . . . . . . 4 . . . Overload Shots . | . . . . . . . . . . . . . . . . . . Overflow Damage 134 | . 15 . 66 . . . . 15 20 18 . . . . . . . Projectiles . | . . . . . . . . . . . . . . . . . . Explosions 134 | . 15 . 66 . . . . 15 20 18 . . . . . . . Melee . | . . . . . . . . . . . . . . . . . . Knockbacks . | . . . . . . . . . . . . . . . . . . Impact . | . . . . . . . . . . . . . . . . . . Kinetic . | . . . . . . . . . . . . . . . . . . Secondary . | . . . . . . . . . . . . . . . . . . Self-Inflicted Damage 151 | . 40 . 22 . . . . . 47 42 . . . . . . . Shots 6 | . 1 . 1 . . . . . 2 2 . . . . . . . Rammed . | . . . . . . . . . . . . . . . . . . Targets Rammed . | . . . . . . . . . . . . . . . . . . Kicked . | . . . . . . . . . . . . . . . . . . Crushed . | . . . . . . . . . . . . . . . . . . Highest Temperature 430 | . 110 . 190 345 . 100 114 98 430 9 . . 252 167 . . . Average Temperature 79 | . 38 . 32 160 . 53 51 26 112 9 . . 96 69 . . . Received Heat Transfer 1270 | . 111 18 279 . . . . . 30 333 . . . 202 9 252 36 Effects 9 | . . . . 2 . . . . 7 . . . . . . . . Energy Bleed 1 | . . . . 1 . . . . . . . . . . . . . Interference 5 | . . . . . . . . . 5 . . . . . . . . Matter Decay 2 | . . . . 1 . . . . 1 . . . . . . . . Damage (major) 1 | . . . . . . . . . 1 . . . . . . . . Siege Activations . | . . . . . . . . . . . . . . . . . . Martial Activations . | . . . . . . . . . . . . . . . . . . Shielding Activations . | . . . . . . . . . . . . . . . . . . Robots Disrupted . | . . . . . . . . . . . . . . . . . . Combat Hostiles . | . . . . . . . . . . . . . . . . . . Robots Corrupted . | . . . . . . . . . . . . . . . . . . Combat Hostiles . | . . . . . . . . . . . . . . . . . . Parts Fried . | . . . . . . . . . . . . . . . . . . Impact Corruptions . | . . . . . . . . . . . . . . . . . . Robots Melted . | . . . . . . . . . . . . . . . . . . Combat Hostiles . | . . . . . . . . . . . . . . . . . . Parts Melted 3 | . . . . . . . . . . . . . 3 . . . . Heat Transferred 800 | . 100 . . . . . . . . . . . 700 . . . . Parts Sabotaged . | . . . . . . . . . . . . . . . . . . Parts Stolen . | . . . . . . . . . . . . . . . . . . Parts Stripped . | . . . . . . . . . . . . . . . . . . Power Chain Reactions 1 | . 1 . . . . . . . . . . . . . . . . Alert | -11 -10 -9 -8 -7 -7 -6 -6 -6 -6 -5 -4 -4 -4 -4 -4 -3 -2 ------- Run | Yrd Mat Mat Mat Fac DSF Fac Was Fac Gar Fac Fac Was Fac Ext Cet Res Res Maximum Alert Level 4 | . . . 3 1 1 . . 2 4 4 2 . . 1 . . . Low Security (%) 57 | 100 100 100 26 . 13 100 100 56 3 . . 100 100 95 100 100 100 Level 1 11 | . . . 29 100 86 . . 38 2 . . . . 4 . . . Level 2 7 | . . . 28 . . . . 4 3 2 100 . . . . . . Level 3 16 | . . . 15 . . . . . 43 80 . . . . . . . Level 4 6 | . . . . . . . . . 46 17 . . . . . . . Level 5 . | . . . . . . . . . . . . . . . . . . High Security . | . . . . . . . . . . . . . . . . . . Max Security . | . . . . . . . . . . . . . . . . . . Peak Influence 1249 | 5 83 6 765 347 207 102 16 408 1249 1113 523 162 156 255 103 75 65 Initial 655 | . . . . 347 207 102 16 . 164 655 500 162 92 . 103 55 . Average 340 | 1 21 1 387 314 205 75 4 139 1005 1019 494 148 43 103 101 34 7 Influence Increases 5123 | 25 145 6 1194 29 . 5 18 487 1225 975 33 . 100 657 . 130 94 Destroy 0b10 Robot/C 1620 | . 100 . 480 . . . . 180 480 200 . . 80 80 . . 20 Destroy 0b10 Robot/NC 140 | 25 . . 90 . . . . . 5 10 . . . 5 . 5 . Destroy Leader 306 | . 20 . 124 . . . . 40 50 42 . . . 20 . . 10 Allied During Kill 740 | . . . . . . . . 144 460 114 . . . 22 . . . Successful Hack 256 | . 18 6 6 14 . 5 . 39 14 46 33 . 20 46 . 5 4 Disable Machine 270 | . . . 150 15 . . . 15 15 75 . . . . . . . Anti-Garrison Action 100 | . . . . . . . . . 100 . . . . . . . . Destroy Structure 686 | . 7 . 329 . . . 18 69 101 158 . . . 4 . . . Partial Spotted 120 | . . . 15 . . . . . . 45 . . . 30 . 30 . Lose Combat Pursuer 885 | . . . . . . . . . . 285 . . . 450 . 90 60 Influence Decreases 5123 | 25 145 6 429 498 99 155 65 252 211 1202 592 331 232 472 92 223 94 Entered New Map 2281 | . . . . 418 89 95 31 . 71 594 522 301 40 . 82 38 . Time Decay 1433 | 25 115 6 219 80 . 40 10 92 . 278 70 30 132 202 10 100 24 Search Patrol Dispatched 100 | . . . . . . . . . . . . . . 100 . . . Lost Part 705 | . 30 . 60 . 10 20 . 10 60 190 . . 60 110 . 85 70 Lost Ally 304 | . . . . . . . 24 . 80 140 . . . 60 . . . Purge Threat 300 | . . . 150 . . . . 150 . . . . . . . . . Squads Dispatched 47 | . 1 . 14 2 . . . 4 . 14 1 . 3 5 . 3 . Investigation 32 | . 1 . 5 2 . . . 4 . 10 1 . 2 5 . 2 . Extermination 4 | . . . . . . . . . . 2 . . 1 . . 1 . Reinforcement 6 | . . . 5 . . . . . . 1 . . . . . . . Assault 2 | . . . 2 . . . . . . . . . . . . . . Garrison 3 | . . . 2 . . . . . . 1 . . . . . . . Intercept . | . . . . . . . . . . . . . . . . . . Searches Triggered 1 | . . . . . . . . . . . . . . 1 . . . Construction Impeded 1 | . . . 1 . . . . . . . . . . . . . . Haulers Reinforced . | . . . . . . . . . . . . . . . . . . Active Scanning Responses . | . . . . . . . . . . . . . . . . . . Cargo Convoy Interrupts . | . . . . . . . . . . . . . . . . . . Stealth | -11 -10 -9 -8 -7 -7 -6 -6 -6 -6 -5 -4 -4 -4 -4 -4 -3 -2 --------- Run | Yrd Mat Mat Mat Fac DSF Fac Was Fac Gar Fac Fac Was Fac Ext Cet Res Res Distress Signals 14 | . . . 5 . . . . . . 2 . . 1 5 1 . . Communications Jammed . | . . . . . . . . . . . . . . . . . . Distress Signals . | . . . . . . . . . . . . . . . . . . Times Spotted 236 | . 12 2 43 1 1 . 1 5 15 56 . 5 12 44 5 17 17 Peak Tracking Total 16 | . 4 2 10 1 1 . 1 3 5 12 . 5 6 16 5 11 9 Tactical Retreats 33 | . . . 6 1 2 . . . . 9 . . . 9 . 4 2 ECM-based Alert Blocks 17 | . . . 9 1 2 . . . . 5 . . . . . . . Traps | -11 -10 -9 -8 -7 -7 -6 -6 -6 -6 -5 -4 -4 -4 -4 -4 -3 -2 ------- Run | Yrd Mat Mat Mat Fac DSF Fac Was Fac Gar Fac Fac Was Fac Ext Cet Res Res Traps Triggered 10 | . . . . . 2 2 . . 3 . 1 . . 1 . 1 . Indirectly . | . . . . . . . . . . . . . . . . . . Trap Hack Attempts . | . . . . . . . . . . . . . . . . . . Triggered . | . . . . . . . . . . . . . . . . . . Disarmed . | . . . . . . . . . . . . . . . . . . Reprogrammed . | . . . . . . . . . . . . . . . . . . Reused . | . . . . . . . . . . . . . . . . . . Traps Extracted . | . . . . . . . . . . . . . . . . . . Installed . | . . . . . . . . . . . . . . . . . . Triggered . | . . . . . . . . . . . . . . . . . . Machines | -11 -10 -9 -8 -7 -7 -6 -6 -6 -6 -5 -4 -4 -4 -4 -4 -3 -2 ---------- Run | Yrd Mat Mat Mat Fac DSF Fac Was Fac Gar Fac Fac Was Fac Ext Cet Res Res Machines Disabled 20 | . . . 10 1 . . . 1 3 5 . . . . . . . Max in Single Turn 2 | . . . 2 1 . . . . 1 2 . . . . . . . Garrison Access 2 | . . . 1 . . . . . . 1 . . . . . . . Garrison Relay 2 | . . . . . . . . . 2 . . . . . . . . Machines Repaired . | . . . . . . . . . . . . . . . . . . Machines Dismantled 1 | . . . . . . . . . . 1 . . . . . . . Machines Sabotaged . | . . . . . . . . . . . . . . . . . . Overloaded Fab Kills . | . . . . . . . . . . . . . . . . . . Hacking | -11 -10 -9 -8 -7 -7 -6 -6 -6 -6 -5 -4 -4 -4 -4 -4 -3 -2 --------- Run | Yrd Mat Mat Mat Fac DSF Fac Was Fac Gar Fac Fac Was Fac Ext Cet Res Res Machines Accessed 65 | . 2 1 6 5 . 1 . 8 2 17 1 . 7 12 . 2 1 Terminals 42 | . 2 1 5 2 . 1 . 3 2 9 . . 3 12 . 1 1 Fabricators 9 | . . . . 1 . . . 2 . 4 . . 2 . . . . Repair Stations 5 | . . . . . . . . 1 . 1 . . 2 . . 1 . Recycling Units 2 | . . . . 1 . . . . . 1 . . . . . . . Scanalyzers 5 | . . . 1 1 . . . 1 . 1 1 . . . . . . Garrison Access 2 | . . . . . . . . 1 . 1 . . . . . . . Total Hacks 175 | . 6 3 17 9 . 6 . 42 3 37 3 . 15 25 . 8 1 Successful 94 | . 4 2 6 4 . 2 . 30 1 17 3 . 9 11 . 4 1 Failed 80 | . 2 1 11 5 . 4 . 11 2 20 . . 6 14 . 4 . Catastrophic 20 | . 1 1 3 2 . . . 2 1 8 . . 1 . . 1 . Database Lockouts 1 | . . . . . . . . 1 . . . . . . . . . Manual 36 | . 1 2 10 1 . 6 . 4 . 7 . . . 3 . 2 . Terminals 97 | . 6 3 13 3 . 6 . 11 3 15 . . 5 25 . 6 1 Fabricators 23 | . . . . 1 . . . 5 . 11 . . 6 . . . . Repair Stations 13 | . . . . . . . . 3 . 4 . . 4 . . 2 . Recycling Units 4 | . . . . 2 . . . . . 2 . . . . . . . Scanalyzers 35 | . . . 4 3 . . . 22 . 3 3 . . . . . . Garrison Access 3 | . . . . . . . . 1 . 2 . . . . . . . Terminal Hacks 40 | . 4 2 3 1 . 2 . 5 1 5 . . 1 11 . 4 1 Record 12 | . . . . . . . . 2 . 2 . . . 4 . 4 . Part Schematic 1 | . . . . . . 1 . . . . . . . . . . . Open Door 6 | . . . . . . . . . . . . . 1 5 . . . Open DSF 4 | . . . . 1 . . . . . 2 . . . . . . 1 Emergency Access Points 1 | . . . . . . . . . 1 . . . . . . . . Terminal Index 6 | . 1 1 1 . . 1 . 1 . 1 . . . . . . . Alert Level 2 | . . . 1 . . . . 1 . . . . . . . . . Unreport Threat 2 | . . . 1 . . . . 1 . . . . . . . . . Locate Traps 1 | . 1 . . . . . . . . . . . . . . . . Registered Components 1 | . 1 . . . . . . . . . . . . . . . . Zone Layout 4 | . 1 1 . . . . . . . . . . . 2 . . . Fabricator Hacks 14 | . . . . 1 . . . 2 . 7 . . 4 . . . . Network Status 4 | . . . . 1 . . . 1 . 1 . . 1 . . . . Load Schematic 6 | . . . . . . . . 1 . 4 . . 1 . . . . Build 4 | . . . . . . . . . . 2 . . 2 . . . . Repair Station Hacks 6 | . . . . . . . . 2 . . . . 4 . . . . Scan Component 2 | . . . . . . . . 1 . . . . 1 . . . . Repair 2 | . . . . . . . . 1 . . . . 1 . . . . Refit 2 | . . . . . . . . . . . . . 2 . . . . Recycling Unit Hacks 1 | . . . . . . . . . . 1 . . . . . . . Report Inventory 1 | . . . . . . . . . . 1 . . . . . . . Scanalyzer 30 | . . . 3 2 . . . 20 . 2 3 . . . . . . Insert Component 14 | . . . 2 1 . . . 9 . 1 1 . . . . . . Analyze 13 | . . . 1 . . . . 10 . 1 1 . . . . . . Retrieve Study 3 | . . . . 1 . . . 1 . . 1 . . . . . . Garrison Access Hacks 3 | . . . . . . . . 1 . 2 . . . . . . . Unlock Access 1 | . . . . . . . . 1 . . . . . . . . . Seal Access 1 | . . . . . . . . . . 1 . . . . . . . Coupler Status 1 | . . . . . . . . . . 1 . . . . . . . Unauthorized Hacks . | . . . . . . . . . . . . . . . . . . Terminals . | . . . . . . . . . . . . . . . . . . Fabricators . | . . . . . . . . . . . . . . . . . . Repair Stations . | . . . . . . . . . . . . . . . . . . Recycling Units . | . . . . . . . . . . . . . . . . . . Scanalyzers . | . . . . . . . . . . . . . . . . . . Garrison Access . | . . . . . . . . . . . . . . . . . . Data Cores Recovered 1 | . . . 1 . . . . . . . . . . . . . . Used 1 | . . . 1 . . . . . . . . . . . . . . Hacking Detections 53 | . 1 1 5 4 . 1 . 7 2 14 1 . 6 8 . 2 1 Full Trace Events 31 | . 1 . 5 2 . . . 4 . 9 1 . 2 5 . 2 . Feedback Events 4 | . . . . . . . . 1 . 2 1 . . . . . . Corruption 3 | . . . . . . . . 1 . 1 1 . . . . . . Hackware Fried 1 | . . . . . . . . . . 1 . . . . . . . Feedback Blocked . | . . . . . . . . . . . . . . . . . . Robot Schematics Acquired . | . . . . . . . . . . . . . . . . . . Robots Built . | . . . . . . . . . . . . . . . . . . Authchips . | . . . . . . . . . . . . . . . . . . Time 187 | . . . . . . . . . . . . . 187 . . . . Total Robot Build Rating . | . . . . . . . . . . . . . . . . . . Part Schematics Acquired 12 | . . . 1 . . 1 . 8 . 1 1 . . . . . . Parts Built 4 | . . . . . . . . . . 2 . . 2 . . . . Authchips . | . . . . . . . . . . . . . . . . . . Time 145 | . . . . . . . . . . 109 . . 36 . . . . Total Part Build Rating 12 | . . . . . . . . . . 6 . . 6 . . . . Part Studies Acquired 3 | . . . . 1 . . . 1 . . 1 . . . . . . Parts Repaired 2 | . . . . . . . . 1 . . . . 1 . . . . Time 122 | . . . . . . . . 19 . . . . 103 . . . . Parts Recycled . | . . . . . . . . . . . . . . . . . . Recycled Matter . | . . . . . . . . . . . . . . . . . . Retrieved Matter . | . . . . . . . . . . . . . . . . . . Retrieved Components . | . . . . . . . . . . . . . . . . . . Parts Scanalyzed 12 | . . . 1 1 . . . 8 . 1 1 . . . . . . Part Schematics Acquired 11 | . . . 1 . . . . 8 . 1 1 . . . . . . Parts Damaged 2 | . . . . 1 . . . 1 . . . . . . . . . Bothacking | -11 -10 -9 -8 -7 -7 -6 -6 -6 -6 -5 -4 -4 -4 -4 -4 -3 -2 ------------ Run | Yrd Mat Mat Mat Fac DSF Fac Was Fac Gar Fac Fac Was Fac Ext Cet Res Res Used RIF Installer 1 | . . . . . . . . . 1 . . . . . . . . Robots Hacked 8 | . . . . . . . . . . 7 . . 1 . . . . Non-combat 8 | . . . . . . . . . . 7 . . 1 . . . . Combat . | . . . . . . . . . . . . . . . . . . Robot Hacks Applied 10 | . . . . . . . . . . 9 . . 1 . . . . parse_system 1 | . . . . . . . . . . . . . 1 . . . . generate_echo 1 | . . . . . . . . . . 1 . . . . . . . find_chute 2 | . . . . . . . . . . 2 . . . . . . . deconstruct_machine 1 | . . . . . . . . . . 1 . . . . . . . map_walls 1 | . . . . . . . . . . 1 . . . . . . . ignore_parts 1 | . . . . . . . . . . 1 . . . . . . . check_alert 1 | . . . . . . . . . . 1 . . . . . . . map_route 1 | . . . . . . . . . . 1 . . . . . . . overload_power 1 | . . . . . . . . . . 1 . . . . . . . Relay Couplers Released 14 | . . . 3 . . . . . 8 3 . . . . . . . Machine Destruction 14 | . . . 3 . . . . . 8 3 . . . . . . . Attached 2 | . . . . . . . . . . 1 . . 1 . . . . Fabnet Peak Effective % . | . . . . . . . . . . . . . . . . . . Robots Rewired . | . . . . . . . . . . . . . . . . . . Allies Hacked . | . . . . . . . . . . . . . . . . . . Hacks Repelled . | . . . . . . . . . . . . . . . . . . Allies | -11 -10 -9 -8 -7 -7 -6 -6 -6 -6 -5 -4 -4 -4 -4 -4 -3 -2 -------- Run | Yrd Mat Mat Mat Fac DSF Fac Was Fac Gar Fac Fac Was Fac Ext Cet Res Res Total Allies 24 | . . . . . . . 20 . . . . . . 4 . . . Largest Group 20 | . . . . . . . 20 14 14 8 . . . 4 . . . Highest-Rated Group 799 | . . . . . . . 799 629 629 371 . . . 285 . . . Highest-Rated Ally 159 | . . . . . . . 50 50 50 50 . . . 159 . . . Total Orders . | . . . . . . . . . . . . . . . . . . Ally Attacks 176 | . . . . . . . 29 23 52 32 . . . 40 . . . Total Damage 8515 | . . . . . . . 2248 1333 2856 1096 . . . 982 . . . Kills 47 | . . . . . . . 4 9 21 8 . . . 5 . . . Allies Corrupted . | . . . . . . . . . . . . . . . . . . Allies Melted . | . . . . . . . . . . . . . . . . . . Intel | -11 -10 -9 -8 -7 -7 -6 -6 -6 -6 -5 -4 -4 -4 -4 -4 -3 -2 ------- Run | Yrd Mat Mat Mat Fac DSF Fac Was Fac Gar Fac Fac Was Fac Ext Cet Res Res Active Infowar (turns) 3288 | 92 374 86 478 170 81 84 117 205 414 404 . . 322 387 1 73 . Optics 94 | . . 68 26 . . . . . . . . . . . . . . Sensors 2404 | . . . 453 170 81 70 117 205 327 220 . . 322 366 . 73 . IFF 800 | . . . . . . . . 87 414 299 . . . . . . . Traps 223 | . . . . . . 52 117 54 . . . . . . . . . Seismic 535 | 92 374 69 . . . . . . . . . . . . . . . Cloaking 154 | . . . . . . . . . . . . . . 151 1 2 . Jamming 74 | . . . . . . . . 74 . . . . . . . . . ECM 858 | . . 76 478 170 79 . . 7 . 48 . . . . . . . Robot Analysis Total . | . . . . . . . . . . . . . . . . . . Derelict Logs Recovered . | . . . . . . . . . . . . . . . . . . Drone Launches . | . . . . . . . . . . . . . . . . . . Drone Recoveries . | . . . . . . . . . . . . . . . . . . Exploration | -11 -10 -9 -8 -7 -7 -6 -6 -6 -6 -5 -4 -4 -4 -4 -4 -3 -2 ------------- Run | Yrd Mat Mat Mat Fac DSF Fac Was Fac Gar Fac Fac Was Fac Ext Cet Res Res Turns Passed 4440 | 252 374 86 478 170 81 86 117 205 414 613 148 73 401 561 23 237 121 Spaces Moved 7382 | 189 194 194 836 532 91 321 247 356 789 1621 139 115 402 875 54 320 107 Core 116 | 2 . . . . . . . . . . . . . 16 . 14 84 Treads . | . . . . . . . . . . . . . . . . . . Legs 53 | 53 . . . . . . . . . . . . . . . . . Wheels 392 | 134 194 3 . . . . . . . . . . . . . 61 . Hover 1724 | . . . . . . . . . . 144 139 115 402 783 . 141 . Flight 5097 | . . 191 836 532 91 321 247 356 789 1477 . . . 76 54 104 23 Fastest Speed 22 | 50 80 34 26 24 24 24 24 23 23 22 56 56 56 40 40 40 40 Average Speed 40 | 90 140 35 29 25 27 24 24 23 25 28 56 56 57 53 40 64 87 Slowest Speed 300 | 120 200 140 111 30 30 24 24 24 96 107 56 56 60 60 40 160 300 Overloaded Moves . | . . . . . . . . . . . . . . . . . . Propulsion Burnouts . | . . . . . . . . . . . . . . . . . . Robots Hopped 32 | . . . 5 4 . 1 . . . 14 . . . 2 . 2 4 Potential Cave-ins 8 | . 2 . 5 . . . . . 1 . . . . . . . . Cave-ins Triggered . | . . . . . . . . . . . . . . . . . . Exploration Rate (%) 35 | 6 32 23 76 11 76 7 95 10 65 39 4 66 10 76 23 10 6 Regions Visited 17 Branch Regions 2 Pre-discovered Areas . | . . . . . . . . . . . . . . . . . . Known Exits Taken 7 | . . . 1 1 . . . 1 . 1 . . 1 1 1 . . Unknown Exits Taken 4 | 1 1 1 . . . . . . . . . . . . . 1 . Scrap Searched . | . . . . . . . . . . . . . . . . . . Spaces Dug 72 | . 6 . 66 . . . . . . . . . . . . . . Terrain Destroyed 571 | . 8 . 430 . . . . 18 46 69 . . . . . . . Melee . | . . . . . . . . . . . . . . . . . . Projectile 8 | . 6 . 2 . . . . . . . . . . . . . . AOE 563 | . 2 . 428 . . . . 18 46 69 . . . . . . . Terrain Rammed . | . . . . . . . . . . . . . . . . . . Walls Destroyed . | . . . . . . . . . . . . . . . . . . Machines Disabled . | . . . . . . . . . . . . . . . . . . Actions | -11 -10 -9 -8 -7 -7 -6 -6 -6 -6 -5 -4 -4 -4 -4 -4 -3 -2 --------- Run | Yrd Mat Mat Mat Fac DSF Fac Was Fac Gar Fac Fac Was Fac Ext Cet Res Res Total 8548 | 240 249 209 971 561 143 328 304 469 990 1727 210 122 547 961 54 344 119 Wait 644 | 1 7 2 39 19 . . 54 80 129 55 63 6 112 73 . 4 . Move 7306 | 188 193 193 826 523 90 319 246 355 787 1592 139 114 401 871 53 315 101 Hop 28 | . . . 4 4 . 1 . . . 14 . . . 1 . 2 2 Pick Up 79 | 14 15 4 13 2 1 3 2 5 4 5 2 . 4 2 . 3 . Fast Attach 66 | 4 . 2 4 1 5 . . 4 4 15 1 2 6 5 . 9 4 Attach 49 | 3 3 1 8 3 . 2 1 2 4 6 3 . 3 1 1 5 3 Detach 12 | . . . 2 2 . . . 2 1 3 1 . . . . 1 . Swap 59 | 4 8 3 15 3 7 2 . 9 4 2 . . 2 . . . . Drop 61 | 3 3 4 13 3 9 1 1 7 5 4 1 . 1 2 . 4 . Fire 144 | 23 20 . 47 1 1 . . 5 6 13 . . 17 2 . . 9 Melee 15 | . . . . . . . . . . 13 . . 1 . . 1 . Ram . | . . . . . . . . . . . . . . . . . . Kick . | . . . . . . . . . . . . . . . . . . Crush . | . . . . . . . . . . . . . . . . . . Escape Stasis 80 | . . . . . 30 . . . 46 . . . . 4 . . . Rewire . | . . . . . . . . . . . . . . . . . . Trap . | . . . . . . . . . . . . . . . . . . Miscellaneous 5 | . . . . . . . . . . 5 . . . . . . . Route ------- -11/Scrapyard -10/Materials -9/Materials -8/Materials -7/Factory -7/DSF -6/Factory -6/Waste -6/Factory -6/Garrison (discovered 2 exits: *Fac x2) -5/Factory -4/Factory -4/Waste -4/Factory -4/Extension (discovered 2 exits: *Res / *Cet) -4/Cetus -3/Research -2/Research History --------- Turn | Location | Event 16 | -11/Scrapyard | Discovered new exit (range 15) 253 | -11/Scrapyard | Entered Materials 310 | -10/Materials | Build established: Mutant 618 | -10/Materials | Discovered new exit (range 7) 627 | -10/Materials | Entered another Materials area 627 | -9/Materials | Evolved 2 slots: Propulsion x1, Utility x1 698 | -9/Materials | Discovered new exit (range 18) 713 | -9/Materials | Entered another Materials area 713 | -8/Materials | Evolved 2 slots: Power x1, Propulsion x1 771 | -8/Materials | Garrison activated, responded to threat 868 | -8/Materials | Destroyed 8 combat bots 1073 | -8/Materials | Destroyed 8 combat bots 1103 | -8/Materials | Build established: Sprinter 1126 | -8/Materials | Discovered new exit (range 14) 1132 | -8/Materials | Identified exit to Factory 1191 | -8/Materials | Entered Factory 1191 | -7/Factory | Evolved 2 slots: Propulsion x1, Utility x1 1361 | -7/Factory | Identified exit to DSF 1361 | -7/Factory | Entered DSF 1404 | -7/DSF | Discovered new exit (range 15) 1413 | -7/DSF | Additional patrols routed to DSF 1442 | -7/DSF | Identified exit to Factory 1442 | -7/DSF | Entered Factory 1442 | -6/Factory | Evolved 2 slots: Power x1, Utility x1 1528 | -6/Factory | Sucked down chute 1528 | -6/Factory | Entered Waste 1529 | -6/Waste | Joined by Warlord forces that had cleared the area 1558 | -6/Waste | A Compactor rumbled back to life 1558 | -6/Waste | Spotted C-40 Crusher 1584 | -6/Waste | Discovered new exit (range 13) 1591 | -6/Waste | Identified exit to Factory 1645 | -6/Waste | Entered Factory 1645 | -6/Factory | Accompanied by 14 allies 1666 | -6/Factory | Repaired Lgt. Deuterium Engine 1695 | -6/Factory | Central database locked down 1788 | -6/Factory | Identified exit to Garrison 1803 | -6/Factory | Build established: Scout 1850 | -6/Factory | Entered Garrison 1850 | -6/Garrison | Accompanied by 14 allies 1864 | -6/Garrison | Triggered checkpoint 1865 | -6/Garrison | Triggered checkpoint 1888 | -6/Garrison | Triggered checkpoint 1906 | -6/Garrison | Lost 3 parts (1n1u1w) 1916 | -6/Garrison | Triggered checkpoint 1956 | -6/Garrison | Lost 3 parts (1p1n1u) 1969 | -6/Garrison | Discovered new exit (range 14) 1972 | -6/Garrison | Identified exit to Factory 1982 | -6/Garrison | Triggered checkpoint 2018 | -6/Garrison | Discovered exit to Factory (range 15) 2020 | -6/Garrison | Triggered checkpoint 2025 | -6/Garrison | Lost 4 allies 2043 | -6/Garrison | Installed Relay Interface Framework 2071 | -6/Garrison | Garrison Relay disabled 2078 | -6/Garrison | Triggered checkpoint 2176 | -6/Garrison | Garrison Relay disabled 2260 | -6/Garrison | Build established: Scavenger-Scout 2264 | -6/Garrison | Entered Factory 2264 | -5/Factory | Accompanied by 8 allies 2264 | -5/Factory | Evolved 2 slots: Propulsion x1, Utility x1 2291 | -5/Factory | Garrison activated, responded to threat 2359 | -5/Factory | Lost 4 allies 2562 | -5/Factory | Fabricated Hacking Suite (x1) 2581 | -5/Factory | Fabricated Hacking Suite? 2612 | -5/Factory | Lost 3 parts (1p1n1w) 2740 | -5/Factory | Lost 4 parts (2p1n1u) 2749 | -5/Factory | Hacking Suite fried by hacking feedback 2782 | -5/Factory | Lost 3 parts (1n2u) 2797 | -5/Factory | Discovered new exit (range 11) 2847 | -5/Factory | Lost 5 parts (3n1u1w) 2872 | -5/Factory | Identified exit to Factory 2877 | -5/Factory | Entered another Factory area 2877 | -4/Factory | Evolved 2 slots: Propulsion x1, Utility x1 3025 | -4/Factory | Sucked down chute 3025 | -4/Factory | Entered Waste 3030 | -4/Waste | Spotted C-40 Crusher 3037 | -4/Waste | Spotted C-40 Crusher 3040 | -4/Waste | EMP discharged 3040 | -4/Waste | Spotted C-40 Crusher 3046 | -4/Waste | Spotted C-40 Crusher 3049 | -4/Waste | Build established: Hacker-Mutant 3061 | -4/Waste | Spotted C-40 Crusher 3062 | -4/Waste | Discovered new exit (range 11) 3098 | -4/Waste | Identified exit to Factory 3098 | -4/Waste | Entered Factory 3142 | -4/Factory | Fabricated Imp. Sensor Array? 3165 | -4/Factory | Lost 6 parts (2p1n3u) 3343 | -4/Factory | Repaired Broken Cmb. Linear Gravjet 3430 | -4/Factory | Spotted B-86 Titan 3470 | -4/Factory | Build established: Scavenger-Mutant 3484 | -4/Factory | System corruption reached 10% 3493 | -4/Factory | Discovered new exit (range 6) 3495 | -4/Factory | Identified exit to Extension 3499 | -4/Factory | Entered Extension 3568 | -4/Extension | Spotted B-86 Titan 3604 | -4/Extension | Lost 4 parts (1p3n) 3636 | -4/Extension | Rescued a captive Derelict 3674 | -4/Extension | Rescued A7 3782 | -4/Extension | Rescued a captive Derelict 3783 | -4/Extension | Rescued a captive Derelict 3865 | -4/Extension | Build established: Hacker-Mutant 3952 | -4/Extension | Spotted B-86 Titan 3994 | -4/Extension | Lost 6 parts (2p2n1u1w) 3999 | -4/Extension | Search patrols dispatched 4014 | -4/Extension | Rescued a captive Derelict 4025 | -4/Extension | Rescued a captive Derelict 4031 | -4/Extension | Core integrity fell below 50% 4055 | -4/Extension | Discovered new exit (range 10) 4055 | -4/Extension | Discovered new exit (range 6) 4058 | -4/Extension | Identified exit to Cetus 4059 | -4/Extension | Lost 4 parts (1n2u1w) 4059 | -4/Extension | Identified exit to Research 4060 | -4/Extension | Entered Cetus 4066 | -4/Cetus | Spotted Cetus Guard 4066 | -4/Cetus | Spotted Cetus Guard 4067 | -4/Cetus | Spotted Cetus Guard 4067 | -4/Cetus | Spotted Cetus Guard 4076 | -4/Cetus | Discovered exit to Research (range 15) 4083 | -4/Cetus | Entered Research 4083 | -3/Research | Evolved 2 slots: Propulsion x1, Utility x1 4285 | -3/Research | Discovered new exit (range 9) 4315 | -3/Research | Core integrity fell below 50% 4320 | -3/Research | Entered another Research area 4320 | -2/Research | Evolved 2 slots: Propulsion x1, Utility x1 4348 | -2/Research | Lost 12 parts (2p4n5u1w) 4359 | -2/Research | Build established: Mutant 4406 | -2/Research | Spotted B-90 Cyclops 4428 | -2/Research | Core integrity fell below 50% 4437 | -2/Research | Core integrity fell below 20% 4441 | -2/Research | Destroyed by G-73 Enforcer with Phase Gun Last Messages --------------- 04398_ Acquired Lgt. Antimatter Reactor. 04401_ C-30 ARC bursts open, deploying its payload. 04401_ S-43 Plague unfolds itself. 04402_ Com. Battery destroyed. 04402_ Acquired Xenon Bombardment Thruster. 04403_ Lgt. Antimatter Reactor destroyed. 04407_ Connecting with DSF Access... 04407_ Current location identified: Research 04409_ Imp. Point Defense System destroyed. 04409_ Xenon Bombardment Thruster destroyed. 04410_ Wave Intensifier disabled. 04415_ Graphene Brace destroyed. 04416_ K-01 Serf destroyed. 04424_ Acquired Q-thruster. 04429_ Q-thruster destroyed. 04431_ Knocked back. 04431_ R-10 Processor collects Lgt. Ion Engine. 04434_ Knocked back. 04435_ Acquired 4 matter. 04436_ Knocked back. Map ----- +----------------------------------------------------+ | ?????????????????????????????????????????????????? | | ?????????????????????????????????????????????????? | | ?????????????????????????????????????????????????? | | ?????????????????????????????????????????????????? | | ?????????????????????????????????????????????????? | | ?????????????????????????????????????????????????? | | ?????????????????????????????????????????????????? | | ?????????????????????????????????????????????????? | | ?????????????????????????????????????????????????? | | ?????????????????????????????????????????????????? | | ??????????????????????? ????????????????????????? | | ?????????????????????" ????????????????????????? | | ??????????????????k g ????????????????????????? | | ???????????????? g ????????????????????????? | | ?????????????? g ????????????????????????? | | ?????????????? g #???????????????????????? | | ??????????????? ???????????????????????? | | ??????????????? #??????????????????????? | | ???????????????? #??????????????????????? | | ????????????????? +??????????????????????? | | ?????????????? ?? #??????????????????????? | | ?????????????"" """ #?????????????########## | | ?????????????"" """ #????????????? # | | ????????????""" """ #????????????? # | | ???????????""" #?????????????? # | | ?????????? @#??????????????? # | | ?????????? #?????????????? * # | | ?????????? #??????????????? # | | ???????????##### #### #####+####??????? # | | ????????????????????# ## ###??????? # | | ????????????????????# #"##########+## | | ????????????????????# ] | | ????????????????????# | | ????????????????????# H | | ????????????????????# ####### """"" | | ????????????????????####+### % #?????# ""Y"" | | ???????????????????????????### ###?????# | | ?????????????????????????????# #???????# | | ?????????????????????????????# +???????# | | ?????????????????????????????# #???????# | | ????????????????????????????? #???????# ### | | ????????????????????????????###+##?????#####/##### | | ???????????????????????????????????????# # | | ???????????????????????????????????????# # | | ???????????????????????????????????????# # | | ???????????????????????????????????????# "" # | | ???????????????????????????????????????# "Y # | | ???????????????????????????????????????# "" # | | ???????????????????????????????????????# # | | ???????????????????????????????????????# # | +----------------------------------------------------+ Best States ------------- Heat Dissipation 71 Energy Generation 37 Energy Capacity 370 Matter Stores 300 Matter Capacity 300 Sight Range 18 Robot Scan Range 16 Terrain Scan Density 10 ECM Strength 2 Jamming Range 12 Cloak Strength 2 Power Amplification 20 Base Temperature (-) 100 Utility Shielding 33 Point Defense Rating 160 Phase Shifting 5 Evasion (%) 73 Offensive Hacking 22 Relay Coupler Types 1 Relay Coupler Value 18 Authchip Count 1 Item Schematics ----------------- Lgt. Nuclear Core | -8/Materials | Scanalyzed Hacking Suite | -6/Factory | Hacked Cesium-ion Thruster | -6/Factory | Scanalyzed Imp. Signal Interpreter | -6/Factory | Scanalyzed Imp. Sensor Array | -6/Factory | Scanalyzed Imp. Trap Scanner | -6/Factory | Scanalyzed Transmission Jammer | -6/Factory | Scanalyzed Missile Launcher | -6/Factory | Scanalyzed Lrn. Missile Launcher | -6/Factory | Scanalyzed Adv. ECM Suite | -6/Factory | Scanalyzed IFF Parser | -5/Factory | Scanalyzed Gravmag Array | -4/Factory | Scanalyzed Robot Schematics ------------------ None Fabricated ------------ Hacking Suite | x1 | -5/Factory Hacking Suite | x1 | -5/Factory Imp. Sensor Array | x2 | -4/Factory Repaired ---------- Lgt. Deuterium Engine | 2% | -6/Factory Cmb. Linear Gravjet | 35% | -4/Factory | Broken Studied --------- Cesium-ion Thruster | -7/Factory | Hacked Lgt. Deuterium Engine | -6/Factory | Hacked Gravmag Array | -4/Factory | Hacked Alien Tech Used ----------------- None Achievements -------------- Backstab Below Error 47 I Laugh At Your Crits Join The Dark Side Mindtrick Not Today, Chutes Origins Prison Break Prolific Hacker Slippery One Suspicious Throw Away The Key Challenges ------------ None Game ------ Seed CompositeVoltaicGutpuncher Manual? 0 Play Time 03:26:38 Cumulative 25.4 hours Start 2026.03.08 @ 14:46:36 End 2026.03.08 @ 18:31:38 Sessions 1 Manual Loads 0 Difficulty Rogue Special Mode None Game No. 23 Rogue 19 Adventurer 4 Explorer 0 Win Type - Total 0 Types 0/0/0/0/0/0/0/0/0/0 Lore% 11 Gallery% 18 Achievement% 20 Wizard Run 0 Options --------- Layout 0 ASCII 0 Keyboard 1 Movement Arrows Keybinds 0 Fullscreen 2 Font 32/CogWide Map View 78x50 Zoom Use 0% Tactical HUD 1 Map Filters NONE Filters NONE Steam 1 RUN: 8772f71d-79fa-4187-90e0-1eed0b5fb80a